[Event "Berlin Championship 2024"]
[Site "Berlin"]
[Date "2024.04.02"]
[Round "4.8"]
[White "Klenburg, Michael"]
[Black "Petersen, Marcel"]
[Result "1-0"]
[ECO "A07"]
[WhiteElo "2328"]
[BlackElo "2133"]
[Annotator "RC"]
[PlyCount "93"]
[EventDate "2024.03.30"]
[EventType "swiss"]
[EventCountry "GER"]
[SourceTitle "playchess.com"]
[Source "ChessBase"]
[SourceQuality "1"]
[TimeControl "40/5400+30:1800+30"]

1. g3 {[%emt 0:00:08]} d5 {[%emt 0:00:10]} 2. Bg2 {[%emt 0:00:23]} g6 {[%emt 0:00:23]} 3. Nf3 {[%emt 0:00:19]} Bg7 {[%emt 0:00:07]} 4. O-O {[%emt 0:00:14]} e5 {[%emt 0:00:10]} 5. d3 {[%emt 0:00:09]} Ne7 {[%emt 0:00:11]} 6. Nbd2 {[%emt 0:00:55]} O-O {[%emt 0:00:29]} 7. e4 {[%emt 0:00:15]} a5 {[%emt 0:01:27]} 8. a4 {[%emt 0:05:53]} Nbc6 {[%emt 0:00:46]} 9. c3 {[%emt 0:00:45]} h6 {[%emt 0:01:00]} 10. exd5 {[%emt 0:00:59]} Nxd5 {[%emt 0:00:08]} 11. Re1 {[%emt 0:00:20]} Bf5 {[%emt 0:03:44]} 12. Nb3 {[%emt 0:04:15]} Re8 {[%emt 0:07:07]} 13. d4 {[%emt 0:02:58]} exd4 {[%emt 0:02:57]} 14. Rxe8+ {[%emt 0:05:00]} Qxe8 {[%emt 0:00:06]} 15. Nfxd4 {[%emt 0:01:40]} Nxd4 {[%emt 0:13:39]} 16. Nxd4 {[%emt 0:01:49]} Rd8 {[%emt 0:12:19]} 17. Qf1 {[%emt 0:06:06]} Bc8 {[%emt 0:03:11]} 18. Bd2 {[%emt 0:10:10]} c6 {[%emt 0:08:38]} 19. Nb3 {[%emt 0:04:36]} b6 {[%emt 0:00:55]} 20. Nd4 {[%emt 0:00:38]} Qd7 {[%emt 0:03:24]} 21. Re1 {[%emt 0:01:48]} Bb7 {[%emt 0:09:32]} 22. Qe2 {[%emt 0:02:08]} c5 {[%emt 0:02:31]} 23. Nb5 {[%emt 0:00:40]} Nf6 {[%emt 0:00:19]} 24. Bxb7 {[%emt 0:00:54]} Qxd2 {[%emt 0:00:14]} 25. Bf3 {[%emt 0:03:25]} Qg5 {[%emt 0:10:35]} 26. Rd1 {[%emt 0:01:50]} Rxd1+ {[%emt 0:02:28]} 27. Qxd1 {[%emt 0:00:23]} Kh7 {[%emt 0:00:46]} 28. Nd6 {[%emt 0:01:35]} Nd7 {[%emt 0:04:03]} 29. Nxf7 {[%emt 0:02:00]} Qe7 {[%emt 0:00:13]} 30. Nd6 {[%emt 0:00:38]} Ne5 {[%emt 0:01:06]} 31. Be4 {[%emt 0:02:20]} Qd7 {[%emt 0:01:22]} 32. Bd5 {[%emt 0:11:22]} Qh3 {[%emt 0:06:06]} 33. f3 {[%emt 0:03:54]} Bf8 {[%emt 0:01:00]} 34. Ne4 {[%emt 0:00:38]} c4 {[%emt 0:00:19]} 35. Qe2 {[%emt 0:01:42]} Qf5 {[%emt 0:03:44]} 36. Kg2 {[%emt 0:00:36]} Nd3 {[%emt 0:01:26]} 37. Bxc4 {[%emt 0:04:17]} Nc5 {[%emt 0:00:07]} 38. Nf2 {[%emt 0:01:06]} Nxa4 {[%emt 0:00:59]} 39. Bd3 {[%emt 0:00:33]} Qf7 {[%emt 0:00:45]} 40. h4 {[%emt 0:02:17]} Nc5 {[%emt 0:01:12]} 41. Bc2 {[%emt 0:30:39]} h5 {[%emt 0:03:02]} 42. Qe5 {[%emt 0:00:00]} Kg8 {[%emt 0:02:21]} 43. Nh3 {[%emt 0:00:00]} Qe7 {[%emt 0:02:49]} 44. Qd5+ {[%emt 0:00:00]} Qf7 {[%emt 0:01:32]} 45. Qc6 {[%emt 0:00:00]} Qe6 {[%emt 0:02:05]} 46. Qxe6+ {[%emt 0:00:00]} Nxe6 {[%emt 0:00:05]} 47. Bb3 {[%emt 0:00:00]} 1-0

[Event "Berlin Championship 2024"]
[Site "Berlin"]
[Date "2024.04.03"]
[Round "5.1"]
[White "Jahnz, Laurin"]
[Black "Lagunow, Raphael"]
[Result "1/2-1/2"]
[ECO "B11"]
[WhiteElo "2051"]
[BlackElo "2421"]
[Annotator "RC"]
[PlyCount "174"]
[EventDate "2024.03.30"]
[EventType "swiss"]
[EventCountry "GER"]
[SourceTitle "playchess.com"]
[Source "ChessBase"]
[SourceQuality "1"]
[TimeControl "40/5400+30:1800+30"]

1. e4 {[%emt 0:00:01]} c6 {[%emt 0:12:56]} 2. Nc3 {[%emt 0:00:11]} d5 {[%emt 0:00:04]} 3. Nf3 {[%emt 0:00:03]} dxe4 {[%emt 0:00:05]} 4. Nxe4 {[%emt 0:00:04]} Nf6 {[%emt 0:00:05]} 5. Qe2 {[%emt 0:00:17]} Nxe4 {[%emt 0:00:07]} 6. Qxe4 {[%emt 0:00:03]} Nd7 {[%emt 0:00:06]} 7. d4 {[%emt 0:00:23]} Nf6 {[%emt 0:00:19]} 8. Qd3 {[%emt 0:00:13]} Bg4 {[%emt 0:08:18]} 9. Ne5 {[%emt 0:01:35]} Bh5 {[%emt 0:00:13]} 10. c3 {[%emt 0:00:05]} Bg6 {[%emt 0:03:22]} 11. Nxg6 {[%emt 0:00:25]} hxg6 {[%emt 0:00:06]} 12. Be2 {[%emt 0:02:25]} e6 {[%emt 0:01:51]} 13. Bf4 {[%emt 0:03:33]} Bd6 {[%emt 0:01:36]} 14. Qg3 {[%emt 0:03:01]} Bxf4 {[%emt 0:11:02]} 15. Qxf4 {[%emt 0:00:05]} a5 {[%emt 0:06:04]} 16. a4 {[%emt 0:06:28]} Qb6 {[%emt 0:01:31]} 17. Rb1 {[%emt 0:08:28]} Qb3 {[%emt 0:08:54]} 18. Bd1 {[%emt 0:04:49]} Qc4 {[%emt 0:01:31]} 19. Qf3 {[%emt 0:04:29]} O-O {[%emt 0:05:01]} 20. b3 {[%emt 0:01:00]} Qd5 {[%emt 0:00:08]} 21. O-O {[%emt 0:02:36]} c5 {[%emt 0:06:12]} 22. Qxd5 {[%emt 0:01:53]} Nxd5 {[%emt 0:00:07]} 23. dxc5 {[%emt 0:04:23]} Rac8 {[%emt 0:00:24]} 24. c4 {[%emt 0:01:07]} Nc3 {[%emt 0:01:23]} 25. Rb2 {[%emt 0:00:23]} Ne4 {[%emt 0:03:02]} 26. b4 {[%emt 0:05:29]} axb4 {[%emt 0:00:25]} 27. Rxb4 {[%emt 0:00:02]} Nxc5 {[%emt 0:00:34]} 28. Bf3 {[%emt 0:00:24]} Rc7 {[%emt 0:00:24]} 29. Rfb1 {[%emt 0:00:57]} Ra8 {[%emt 0:01:49]} 30. Bxb7 {[%emt 0:03:26]} Nxb7 {[%emt 0:05:24]} 31. Rxb7 {[%emt 0:01:57]} Rxb7 {[%emt 0:00:08]} 32. Rxb7 {[%emt 0:00:02]} Rxa4 {[%emt 0:00:06]} 33. g3 {[%emt 0:00:13]} Rxc4 {[%emt 0:00:06]} 34. Rb8+ {[%emt 0:00:31]} Kh7 {[%emt 0:00:05]} 35. h4 {[%emt 0:00:21]} g5 {[%emt 0:04:49]} 36. hxg5 {[%emt 0:00:20]} Kg6 {[%emt 0:00:26]} 37. Rb7 {[%emt 0:00:41]} Rg4 {[%emt 0:00:08]} 38. Kg2 {[%emt 0:00:33]} Rxg5 {[%emt 0:00:05]} 39. f3 {[%emt 0:07:08]} Ra5 {[%emt 0:02:03]} 40. g4 {[%emt 0:01:19]} e5 {[%emt 0:06:28]} 41. Rb4 {[%emt 0:30:22]} Ra2+ {[%emt 0:40:57]} 42. Kg3 {[%emt 0:00:08]} Re2 {[%emt 0:00:00]} 43. Ra4 {[%emt 0:00:00]} f6 {[%emt 0:00:00]} 44. Ra7 {[%emt 0:00:00]} Rb2 {[%emt 0:00:00]} 45. Ra4 {[%emt 0:00:00]} Rb3 {[%emt 0:00:00]} 46. Rc4 {[%emt 0:00:00]} Kg5 {[%emt 0:00:00]} 47. Rc7 {[%emt 0:00:00]} g6 {[%emt 0:00:00]} 48. Re7 {[%emt 0:00:00]} Re3 {[%emt 0:00:00]} 49. Re8 {[%emt 0:00:00]} Re2 {[%emt 0:00:00]} 50. Rg8 {[%emt 0:00:00]} Kh6 {[%emt 0:00:00]} 51. Rf8 {[%emt 0:06:59]} Kg7 {[%emt 0:00:00]} 52. Ra8 {[%emt 0:01:07]} f5 {[%emt 0:00:00]} 53. gxf5 {[%emt 0:01:14]} gxf5 {[%emt 0:00:00]} 54. Ra6 {[%emt 0:00:14]} Kf7 {[%emt 0:00:00]} 55. Rb6 {[%emt 0:00:34]} Ke7 {[%emt 0:00:00]} 56. Rc6 {[%emt 0:04:44]} Re3 {[%emt 0:00:00]} 57. Kf2 {[%emt 0:00:18]} Rd3 {[%emt 0:00:00]} 58. Ke2 {[%emt 0:02:54]} Rd6 {[%emt 0:00:00]} 59. Rc5 {[%emt 0:00:16]} Kf6 {[%emt 0:00:00]} 60. Ra5 {[%emt 0:06:36]} Rb6 {[%emt 0:00:00]} 61. Kf2 {[%emt 0:01:30]} Rb2+ {[%emt 0:00:00]} 62. Kf1 {[%emt 0:00:05]} Rb3 {[%emt 0:00:59]} 63. Ke2 {[%emt 0:01:17]} Kg5 {[%emt 0:01:32]} 64. Rxe5 {[%emt 0:09:49]} Kf4 {[%emt 0:00:05]} 65. Ra5 {[%emt 0:00:02]} Re3+ {[%emt 0:00:05]} 66. Kf2 {[%emt 0:00:02]} Rxf3+ {[%emt 0:00:04]} 67. Kg2 {[%emt 0:00:02]} Re3 {[%emt 0:06:21]} 68. Kf2 {[%emt 0:00:13]} Re4 {[%emt 0:00:04]} 69. Ra3 {[%emt 0:01:30]} Rb4 {[%emt 0:00:06]} 70. Rf3+ {[%emt 0:00:23]} Ke5 {[%emt 0:01:19]} 71. Re3+ {[%emt 0:00:12]} Kf6 {[%emt 0:01:32]} 72. Kf3 {[%emt 0:00:49]} Kg5 {[%emt 0:00:07]} 73. Ra3 {[%emt 0:00:05]} Rh4 {[%emt 0:00:34]} 74. Kg3 {[%emt 0:00:08]} f4+ {[%emt 0:02:05]} 75. Kf2 {[%emt 0:00:14]} Rh2+ {[%emt 0:00:21]} 76. Kg1 {[%emt 0:00:06]} Re2 {[%emt 0:00:43]} 77. Kf1 {[%emt 0:00:09]} Rb2 {[%emt 0:01:12]} 78. Rc3 {[%emt 0:00:10]} Kg4 {[%emt 0:00:06]} 79. Ra3 {[%emt 0:00:04]} Rc2 {[%emt 0:01:02]} 80. Rb3 {[%emt 0:00:05]} Ra2 {[%emt 0:00:03]} 81. Rc3 {[%emt 0:00:03]} Kf5 {[%emt 0:00:05]} 82. Rb3 {[%emt 0:00:11]} Rd2 {[%emt 0:01:14]} 83. Ke1 {[%emt 0:00:18]} Rd4 {[%emt 0:00:21]} 84. Ke2 {[%emt 0:01:26]} Kg4 {[%emt 0:00:15]} 85. Kf2 {[%emt 0:00:08]} f3 {[%emt 0:00:45]} 86. Rxf3 {[%emt 0:00:23]} Rf4 {[%emt 0:00:05]} 87. Rxf4+ {[%emt 0:00:04]} Kxf4 {[%emt 0:04:31]} 1/2-1/2

[Event "Berlin Championship 2024"]
[Site "Berlin"]
[Date "2024.04.03"]
[Round "5.2"]
[White "Poltorak, Sebastian"]
[Black "Polzin, Rainer"]
[Result "1/2-1/2"]
[ECO "C99"]
[WhiteElo "2392"]
[BlackElo "2401"]
[Annotator "TA"]
[PlyCount "38"]
[EventDate "2024.03.30"]
[EventType "swiss"]
[EventCountry "GER"]
[SourceTitle "playchess.com"]
[Source "ChessBase"]
[SourceQuality "1"]
[TimeControl "40/5400+30:1800+30"]

{[%evp 33,38,22,22,18,16,10,12]} 1. e4 {[%emt 0:00:07]} e5 {[%emt 0:00:04]} 2. Nf3 {[%emt 0:00:23]} Nc6 {[%emt 0:00:02]} 3. Bb5 {[%emt 0:00:12][%cal Bf1b5,Bb5a4,Ba4b3][%mdl 32]} a6 {[%emt 0:00:03]} 4. Ba4 {[%emt 0:00:13]} Nf6 {[%emt 0:00:08]} 5. O-O {[%emt 0:00:07]} Be7 {[%emt 0:00:05]} 6. Re1 {[%emt 0:00:13]} b5 {[%emt 0:00:06]} 7. Bb3 {[%emt 0:00:07]} d6 {[%emt 0:00:07]} 8. c3 {[%emt 0:00:14]} O-O {[%emt 0:00:06]} 9. h3 {[%emt 0:00:18]} Na5 {[%emt 0:00:08]} 10. Bc2 {[%emt 0:00:06]} c5 {[%emt 0:00:08]} 11. d4 {[%emt 0:00:14]} Qc7 {[%emt 0:00:08]} 12. Nbd2 {[%emt 0:00:17]} cxd4 {[%emt 0:00:27]} 13. cxd4 {[%emt 0:00:08]} Nc6 {[%emt 0:00:05]} 14. Nb3 {[%emt 0:00:30]} a5 {[%emt 0:00:07][%cal Ba6a5,Ba5a4][%mdl 32]} 15. Be3 {[%emt 0:00:16]} a4 {[%emt 0:00:16]} 16. Nbd2 {[%emt 0:00:19]} Bd7 {[%emt 0:00:19]} 17. Rc1 {[%emt 0:00:21]} Qb7 {[%emt 0:00:07] The position is equal.} 18. Qe2 {[%emt 0:00:30]} Rfe8 {[%emt 0:00:08]} 19. Bd3 {[%emt 0:00:28]} Rab8 {[%emt 0:00:08] An uneventful encounter.   Weighted Error Value: White=0.05 (flawless) /Black=0.00 (flawless) .  OK:         	---       	Black=1} 1/2-1/2

[Event "Berlin Championship 2024"]
[Site "Berlin"]
[Date "2024.04.03"]
[Round "5.3"]
[White "Baldauf, Marco"]
[Black "Klenburg, Michael"]
[Result "1-0"]
[ECO "A54"]
[WhiteElo "2481"]
[BlackElo "2328"]
[Annotator "TA"]
[PlyCount "59"]
[EventDate "2024.03.30"]
[EventType "swiss"]
[EventCountry "GER"]
[SourceTitle "playchess.com"]
[Source "ChessBase"]
[SourceQuality "1"]
[TimeControl "40/5400+30:1800+30"]

{[%evp 13,59,35,49,58,56,47,54,57,54,51,56,47,59,32,90,83,50,55,153,147,256,254,235,214,400,381,412,357,344,368,778,706,778,764,806,816,987,846,775,483,474,484,560,543,542,543,683,674]} 1. c4 {[%emt 0:00:03]} Nf6 {[%emt 0:18:38]} 2. Nc3 {[%emt 0:00:23]} e5 {[%emt 0:00:32]} 3. Nf3 {[%emt 0:01:24]} d6 {[%emt 0:00:21]} 4. d4 {[%emt 0:01:38]} Nbd7 {[%emt 0:00:19]} 5. Bg5 {[%emt 0:01:27]} Be7 {[%emt 0:01:06]} 6. e3 {[%emt 0:00:04]} c6 {[%emt 0:02:15]} 7. Qc2 {[%emt 0:02:32]} Ng4 {[%emt 0:02:00]} 8. Bxe7 {[%emt 0:00:12]} Qxe7 {[%emt 0:00:05]} 9. O-O-O {[%emt 0:00:52]} Ngf6 {[%emt 0:02:33]} 10. h3 {[%emt 0:03:50][%cal Bh2h3,Bh3h4][%mdl 32] White is slightly better.} O-O {[%emt 0:13:57]} 11. g4 {[%emt 0:00:43][%cal Bg2g4,Bg4g5][%mdl 32]} g6 {[%emt 0:05:21]} 12. g5 {[%emt 0:14:39]} Nh5 {[%emt 0:00:43]} 13. Be2 {[%emt 0:00:04]} Ng7 {[%emt 0:07:43]} (13... f5 $14) 14. h4 $16 {[%emt 0:08:05]} exd4 {[%emt 0:02:45]} 15. Nxd4 {[%emt 0:09:29]} Re8 {[%emt 0:01:31] White now steadily converts the win.} (15... Nc5 $14) 16. h5 {[%emt 0:10:08] White is much more active.} Nc5 {[%emt 0:02:25]} (16... Qxg5 $16 17. Rdg1 Qf6) 17. hxg6 $18 {[%emt 0:03:57]} hxg6 {[%emt 0:03:26][%cal Bh7g6,Bg6h5][%mdl 32]} 18. Rdg1 {[%emt 0:16:41] aiming for Rh2.} Nge6 $2 {[%emt 0:08:41] [#]} (18... Nf5) 19. Nf3 {[%emt 0:00:58]} Ng7 {[%emt 0:10:14]} 20. Rh4 {[%emt 0:07:06]} Bf5 {[%emt 0:04:16]} 21. Rgh1 {[%emt 0:02:11]} Nh5 $2 {[%emt 0:00:27]} (21... f6) 22. Rxh5 {[%emt 0:00:42] White is clearly winning.} gxh5 {[%emt 0:00:16]} 23. Qxf5 {[%emt 0:00:05]} Qe6 {[%emt 0:00:04]} 24. Qf4 {[%emt 0:02:23]} Ne4 {[%emt 0:01:59]} 25. Nxe4 {[%emt 0:01:10]} Qxe4 {[%emt 0:00:05]} 26. Qxe4 {[%emt 0:00:02]} Rxe4 {[%emt 0:00:07]} 27. Rxh5 {[%emt 0:00:05]} Rae8 {[%emt 0:01:17]} 28. Bd3 {[%emt 0:01:19]} Rg4 {[%emt 0:00:24]} 29. Kd2 {[%emt 0:00:14]} a6 {[%emt 0:00:27]} 30. b3 {[%emt 0:00:24] Weighted Error Value: White=0.29 (precise) /Black=0.57.  Mistake:       	---       	Black=5      OK:         	White=10    	Black=7      Best:        	White=2     	---} 1-0

[Event "Berlin Championship 2024"]
[Site "Berlin"]
[Date "2024.04.03"]
[Round "5.4"]
[White "Schmidek, Emil"]
[Black "Lagunow, Alexander"]
[Result "1-0"]
[ECO "E57"]
[WhiteElo "2439"]
[BlackElo "2350"]
[Annotator "TA"]
[PlyCount "57"]
[EventDate "2024.03.30"]
[EventType "swiss"]
[EventCountry "GER"]
[SourceTitle "playchess.com"]
[Source "ChessBase"]
[SourceQuality "1"]
[TimeControl "40/5400+30:1800+30"]

{[%evp 20,57,38,19,26,27,23,19,20,-15,-14,-28,7,0,56,64,58,30,137,2,12,5,5,0,3,0,657,659,629,627,1823,624,600,519,620,610,608,603,2003,1805]} 1. d4 {[%emt 0:00:03]} Nf6 {[%emt 0:00:17]} 2. c4 {[%emt 0:00:05]} e6 {[%emt 0:00:05]} 3. Nc3 {[%emt 0:00:09]} Bb4 {[%emt 0:00:12]} 4. e3 {[%emt 0:00:08]} O-O {[%emt 0:00:59]} 5. Bd3 {[%emt 0:00:08]} c5 {[%emt 0:00:28]} 6. Nf3 {[%emt 0:00:20]} cxd4 {[%emt 0:02:47]} 7. exd4 {[%emt 0:00:13]} d5 {[%emt 0:00:06]} 8. O-O {[%emt 0:00:14]} dxc4 {[%emt 0:02:07]} 9. Bxc4 {[%emt 0:00:08]} Nc6 {[%emt 0:00:40]} 10. a3 {[%emt 0:00:45]} Be7 {[%emt 0:01:13]} 11. Be3 {[%emt 0:22:48]} a6 {[%emt 0:13:54]} 12. Rc1 {[%emt 0:16:29]} b5 {[%emt 0:11:14]} 13. Ba2 {[%emt 0:10:26]} Bb7 {[%emt 0:04:00] The position is equal.} 14. Qd3 {[%emt 0:02:07]} Qd6 {[%emt 0:12:08]} 15. b4 {[%emt 0:05:57]} Rfd8 {[%emt 0:07:54]} 16. Rfd1 {[%emt 0:00:40]} Nb8 {[%emt 0:06:07] [#]} (16... a5 $11) 17. d5 $1 $14 {[%emt 0:14:53]} exd5 {[%emt 0:17:31]} (17... Bxd5 18. Nxd5) 18. Bc5 {[%emt 0:00:20]} Qd7 {[%emt 0:06:03]} (18... Qc7 $11 {keeps the balance.}) 19. Ne5 {[%emt 0:04:38] White is much more active. The black rooks are passive.} (19. Bb6 $16 Rc8 20. Bd4 (20. Nxd5 Rxc1 21. Nxe7+ Kf8 $11)) 19... Qe8 $11 {[%emt 0:06:32]} (19... Qe6 {is interesting.} 20. Bxe7 Qxe7 21. Nxd5 Nxd5 22. Bxd5 Bxd5 23. Qxd5 Rxd5 24. Rc8+ Qf8) 20. Bxe7 {[%emt 0:10:38]} (20. Nxd5 {seems wilder.} Nxd5 21. Bxe7 Qxe7 22. Bxd5 Bxd5 23. Qxd5 Rxd5 24. Rc8+) 20... Qxe7 {[%emt 0:00:05] [#]} 21. Nxd5 $1 {[%emt 0:02:25]} Nxd5 {[%emt 0:04:06]} ({But not} 21... Bxd5 22. Bxd5 Nxd5 23. Qf3 $16) 22. Bxd5 {[%emt 0:00:09]} Rf8 {[%emt 0:01:02][%mdl 8192]} (22... Bxd5 $11 23. Qxd5 Rxd5 24. Rc8+ Qf8 25. Rxf8+ (25. Rxd5 $2 {loses.} Qxc8 26. h4 Qc1+ 27. Kh2 Nc6 $19) 25... Kxf8 26. Rxd5 Ke7) 23. Bxf7+ $18 {[%emt 0:01:45] White is clearly winning.} Rxf7 {[%emt 0:00:35]} 24. Nxf7 {[%emt 0:00:05]} Kxf7 {[%emt 0:00:29]} 25. Qf5+ {[%emt 0:02:22]} (25. Re1 $142 Qf6 26. Rc7+ (26. Qxh7 Nc6 $18) 26... Kf8 27. Qxh7 (27. Rxb7 Nc6 $18)) 25... Kg8 {[%emt 0:00:06]} 26. Re1 {[%emt 0:00:39]} Qf8 {[%emt 0:00:59]} 27. Qe6+ {[%emt 0:00:47]} Kh8 {[%emt 0:00:08]} 28. Rc7 {[%emt 0:00:12][%cal Oc7f7] aiming for Rf7! Black is weak on the dark squares} Ra7 {[%emt 0:00:43]} 29. Qb6 {[%emt 0:01:29][%csl LRa7,LRb7] Weighted Error Value: White=0.46/Black=0.69.  Loses game:     	---       	Black=1      Mistake:       	White=1     	Black=2      Inaccurate:     	White=1     	Black=1      OK:         	White=5     	Black=3      Best:        	---       	Black=1      Brilliant:      	White=1     	---} 1-0

[Event "Berlin Championship 2024"]
[Site "Berlin"]
[Date "2024.04.03"]
[Round "5.5"]
[White "Florstedt, Johannes"]
[Black "Thiede, Lars"]
[Result "1-0"]
[ECO "C47"]
[WhiteElo "2348"]
[BlackElo "2388"]
[Annotator "RC"]
[PlyCount "67"]
[EventDate "2024.03.30"]
[EventType "swiss"]
[EventCountry "GER"]
[SourceTitle "playchess.com"]
[Source "ChessBase"]
[SourceQuality "1"]
[TimeControl "40/5400+30:1800+30"]

1. e4 {[%emt 0:03:00]} e5 {[%emt 0:02:09]} 2. Nf3 {[%emt 0:00:07]} Nc6 {[%emt 0:00:13]} 3. Nc3 {[%emt 0:03:37]} Nf6 {[%emt 0:00:25]} 4. d4 {[%emt 0:00:05]} exd4 {[%emt 0:00:11]} 5. Nxd4 {[%emt 0:00:06]} Bb4 {[%emt 0:00:10]} 6. Nxc6 {[%emt 0:00:07]} bxc6 {[%emt 0:00:06]} 7. Bd3 {[%emt 0:00:05]} d5 {[%emt 0:00:29]} 8. exd5 {[%emt 0:00:07]} cxd5 {[%emt 0:00:11]} 9. O-O {[%emt 0:00:06]} O-O {[%emt 0:00:09]} 10. h3 {[%emt 0:00:03]} Rb8 {[%emt 0:00:57]} 11. Be3 {[%emt 0:00:29]} a6 {[%emt 0:03:26]} 12. Ba7 {[%emt 0:12:19]} Ra8 {[%emt 0:03:17]} 13. Bd4 {[%emt 0:03:11]} Be6 {[%emt 0:08:09]} 14. a3 {[%emt 0:11:51]} Bd6 {[%emt 0:10:46]} 15. b4 {[%emt 0:00:36]} c6 {[%emt 0:16:29]} 16. Na4 {[%emt 0:01:51]} Ne4 {[%emt 0:05:35]} 17. Nc5 {[%emt 0:05:39]} Nxc5 {[%emt 0:11:01]} 18. bxc5 {[%emt 0:00:36]} Bf4 {[%emt 0:02:50]} 19. Qf3 {[%emt 0:03:29]} Qh4 {[%emt 0:04:26]} 20. c3 {[%emt 0:00:24]} Bc7 {[%emt 0:01:34]} 21. Rab1 {[%emt 0:01:18]} a5 {[%emt 0:03:35]} 22. Rb7 {[%emt 0:04:21]} Qf4 {[%emt 0:03:26]} 23. Qxf4 {[%emt 0:30:23]} Bxf4 {[%emt 0:01:26]} 24. g3 {[%emt 0:00:16]} Rfb8 {[%emt 0:08:28]} 25. Rfb1 {[%emt 0:01:49]} Rxb7 {[%emt 0:04:42]} 26. Rxb7 {[%emt 0:00:07]} Bb8 {[%emt 0:00:31]} 27. Kg2 {[%emt 0:01:47]} g6 {[%emt 0:01:50]} 28. Bc2 {[%emt 0:03:48]} Bc8 {[%emt 0:03:07]} 29. Rb6 {[%emt 0:00:59]} Bd7 {[%emt 0:00:08]} 30. Ba4 {[%emt 0:00:37]} Bc7 {[%emt 0:00:41]} 31. Bxc6 {[%emt 0:06:15]} Ra7 {[%emt 0:00:09]} 32. Bxd5 {[%emt 0:00:30]} a4 {[%emt 0:01:44]} 33. Rb2 {[%emt 0:01:29]} Be6 {[%emt 0:00:47]} 34. c4 {[%emt 0:00:52]} 1-0

[Event "Berlin Championship 2024"]
[Site "Berlin"]
[Date "2024.04.03"]
[Round "5.6"]
[White "Hesse, Henrik"]
[Black "Muse, Drazen"]
[Result "1-0"]
[ECO "A20"]
[WhiteElo "2312"]
[BlackElo "2316"]
[Annotator "RC"]
[PlyCount "121"]
[EventDate "2024.03.30"]
[EventType "swiss"]
[EventCountry "GER"]
[SourceTitle "playchess.com"]
[Source "ChessBase"]
[SourceQuality "1"]
[TimeControl "40/5400+30:1800+30"]

1. c4 {[%emt 0:12:09]} e5 {[%emt 0:00:17]} 2. g3 {[%emt 0:00:17]} Nf6 {[%emt 0:00:05]} 3. Bg2 {[%emt 0:00:36]} c6 {[%emt 0:00:06]} 4. d4 {[%emt 0:01:28]} Bb4+ {[%emt 0:00:11]} 5. Bd2 {[%emt 0:00:24]} Bxd2+ {[%emt 0:00:06]} 6. Qxd2 {[%emt 0:00:04]} d6 {[%emt 0:00:14]} 7. Nc3 {[%emt 0:02:45]} O-O {[%emt 0:02:15]} 8. e4 {[%emt 0:01:04]} Nbd7 {[%emt 0:02:04]} 9. Nf3 {[%emt 0:01:32]} Nb6 {[%emt 0:03:37]} 10. b3 {[%emt 0:03:56]} Bg4 {[%emt 0:00:45]} 11. O-O {[%emt 0:08:40]} Bxf3 {[%emt 0:03:06]} 12. Bxf3 {[%emt 0:00:04]} Nbd7 {[%emt 0:00:11]} 13. Bg2 {[%emt 0:04:12]} Re8 {[%emt 0:00:14]} 14. Rad1 {[%emt 0:04:51]} Nf8 {[%emt 0:00:25]} 15. Bh3 {[%emt 0:11:08]} a6 {[%emt 0:02:01]} 16. f4 {[%emt 0:03:17]} exf4 {[%emt 0:04:55]} 17. Qxf4 {[%emt 0:02:39]} b5 {[%emt 0:01:11]} 18. c5 {[%emt 0:12:59]} dxc5 {[%emt 0:02:54]} 19. e5 {[%emt 0:00:07]} Ng6 {[%emt 0:02:07]} 20. Qf2 {[%emt 0:02:50]} Qa5 {[%emt 0:01:34]} 21. exf6 {[%emt 0:06:37]} Qxc3 {[%emt 0:00:06]} 22. fxg7 {[%emt 0:03:11]} Ra7 {[%emt 0:00:58]} 23. dxc5 {[%emt 0:01:03]} Re3 {[%emt 0:04:06]} 24. Rc1 {[%emt 0:05:36]} Qe5 {[%emt 0:04:50]} 25. Rfe1 {[%emt 0:01:08]} Re7 {[%emt 0:01:47]} 26. Rxe3 {[%emt 0:00:30]} Qxe3 {[%emt 0:00:03]} 27. Qxe3 {[%emt 0:00:13]} Rxe3 {[%emt 0:00:02]} 28. Kf2 {[%emt 0:00:06]} Rd3 {[%emt 0:01:03]} 29. Rc2 {[%emt 0:03:19]} b4 {[%emt 0:00:55]} 30. Bf1 {[%emt 0:00:43]} Rd1 {[%emt 0:00:43]} 31. Bxa6 {[%emt 0:00:35]} Ne5 {[%emt 0:00:09]} 32. Be2 {[%emt 0:01:49]} Rh1 {[%emt 0:01:31]} 33. Kg2 {[%emt 0:00:34]} Ra1 {[%emt 0:00:14]} 34. h4 {[%emt 0:01:40]} Kxg7 {[%emt 0:02:23]} 35. Kf2 {[%emt 0:00:48]} Kf6 {[%emt 0:00:24]} 36. Rd2 {[%emt 0:02:51]} h6 {[%emt 0:00:58]} 37. Ke3 {[%emt 0:00:39]} Rg1 {[%emt 0:01:52]} 38. Kf2 {[%emt 0:00:13]} Ra1 {[%emt 0:00:04]} 39. Ke3 {[%emt 0:03:23]} Rg1 {[%emt 0:00:55]} 40. Rd4 {[%emt 0:00:00]} Rxg3+ {[%emt 0:02:04]} 41. Kf2 {[%emt 0:08:01]} Rc3 {[%emt 0:00:31]} 42. Rxb4 {[%emt 0:00:06]} Rxc5 {[%emt 0:03:00]} 43. a4 {[%emt 0:00:48]} Ke6 {[%emt 0:00:18]} 44. Rb7 {[%emt 0:02:23]} Kf5 {[%emt 0:02:47]} 45. Ke3 {[%emt 0:01:31]} Rc3+ {[%emt 0:02:25]} 46. Kd2 {[%emt 0:02:34]} Rh3 {[%emt 0:02:57]} 47. a5 {[%emt 0:07:29]} Rxh4 {[%emt 0:00:10]} 48. a6 {[%emt 0:00:04]} Rd4+ {[%emt 0:00:07]} 49. Kc3 {[%emt 0:00:07]} Rd8 {[%emt 0:03:20]} 50. a7 {[%emt 0:00:04]} Ra8 {[%emt 0:00:04]} 51. Kd4 {[%emt 0:00:53]} Kf4 {[%emt 0:00:13]} 52. Kc5 {[%emt 0:00:36]} Ke3 {[%emt 0:00:13]} 53. Bh5 {[%emt 0:12:24]} f5 {[%emt 0:00:32]} 54. Re7 {[%emt 0:00:00]} Ke4 {[%emt 0:00:11]} 55. Kd6 {[%emt 0:00:00]} Kd4 {[%emt 0:00:21]} 56. Rxe5 {[%emt 0:00:00]} Rxa7 {[%emt 0:00:03]} 57. Rxf5 {[%emt 0:00:00]} Rb7 {[%emt 0:00:26]} 58. Bf7 {[%emt 0:00:00]} Rb5 {[%emt 0:00:28]} 59. Rxb5 {[%emt 0:00:00]} cxb5 {[%emt 0:00:04]} 60. Kc6 {[%emt 0:00:00]} b4 {[%emt 0:00:16]} 61. Kb5 {[%emt 0:00:13]} 1-0